Cogmind - Beta 14 @@@ ROGUE MODE // 2024.10.02 @ 11:11:28 Player: Corvi Result: Destroyed by 7F-P14(R) with Subdweller Laser Performance ------------- Evolutions (0) 0 Regions Visited (2) 400 Robots Destroyed (30) 150 Value Destroyed (690) 690 Prototype IDs (0) 0 Alien Tech Used (0) 0 Bonus (0) 0 TOTAL SCORE: 1240 Bonus ------- None Cogmind --------- Core Integrity 0/250 Matter 258/300 Energy 125/125 System Corruption 0% Temperature Cool (6) Movement Core (250) Ox4 Location -10/Subcaves Parts ------- > --- POWER (1) -------- Light Ion Engine > --- PROPULSION (2) --- (None) > --- UTILITY (2) ------ Targeting Computer Makeshift Light Armor Plating > --- WEAPON (2) ------- Subdweller Machine Gun Subdweller Machine Gun > --- INVENTORY (5) ---- Ion Engine Structural Scanner Hacking Suite Mining Laser Peak State ------------ > --- POWER ------------ Light Ion Engine > --- PROPULSION ------- Aluminum Leg Aluminum Leg > --- UTILITY ---------- Targeting Computer Makeshift Light Armor Plating > --- WEAPON ----------- Battle Rifle Subdweller Machine Gun > --- INVENTORY -------- Ion Engine Structural Scanner Hacking Suite Grenade Launcher Mining Laser [Rating: 12] Favorites ----------- Power Light Ion Engine Engine Light Ion Engine Propulsion Aluminum Leg Treads Light Treads Leg Aluminum Leg Utility Targeting Computer Device Terrain Scanner Storage Small Storage Unit Processor Targeting Computer Protection Makeshift Light Armor Plating Weapon Grenade Launcher Energy Gun EM Pulse Gun Ballistic Gun Battle Rifle Launcher Grenade Launcher Special Weapon Mining Laser Build | -11 -10 -10 ------- Run | Yrd Mat Sub Slots Evolved . | . . . Power . | . . . Propulsion . | . . . Utility . | . . . Weapon . | . . . Parts Attached 32 | 6 10 16 Power 4 | 1 2 1 Engine 4 | 1 2 1 Core . | . . . Reactor . | . . . Propulsion 4 | 2 2 . Treads 2 | 2 . . Leg 2 | . 2 . Wheel . | . . . Hover . | . . . Flight . | . . . Utility 5 | 1 3 1 Device 2 | . 2 . Storage 1 | 1 . . Processor 1 | . 1 . Hackware . | . . . Protection 1 | . . 1 Artifact . | . . . Weapon 19 | 2 3 14 Energy Gun 2 | 2 . . Energy Cannon . | . . . Ballistic Gun 8 | . . 8 Ballistic Cannon . | . . . Launcher 7 | . 3 4 Special Weapon 2 | . . 2 Impact Weapon . | . . . Slashing Weapon . | . . . Piercing Weapon . | . . . Special Melee Weapon . | . . . Unidentified Prototypes . | . . . Parts Lost 8 | . 2 6 Power 2 | . 1 1 Propulsion 2 | . . 2 Utility . | . . . Weapon 4 | . 1 3 Highest Loss Streak 3 | . 2 3 To Critical Strikes 2 | . 1 1 Average Slot Usage (%) 99 | . 96 99 Engine 13 | . 12 14 Treads 2 | . 11 . Leg 25 | . 16 27 Device 1 | . 4 . Storage 9 | . 14 8 Processor 12 | . 8 14 Protection 4 | . . 5 Energy Gun 4 | . 20 . Ballistic Gun 10 | . . 13 Launcher 11 | . 6 13 Special Weapon 1 | . . 1 Peak Build Rating 12 | 6 8 12 Average Rating 8 | 4 7 9 On Entrance 4 | . 6 8 Naked Turns . | . . . Heaviest Build 16 | 14 16 14 Greatest Support 40 | 40 40 20 Greatest Overweight (x) . | . . . Average Overweight (x) . | . . . Largest Inventory Capacity 8 | 8 8 8 Average Capacity 7 | 7 8 6 Most Carried 8 | 4 8 8 Average Carried 6 | 2 5 6 Final Capacity 8 | 8 8 5 Final Carried 8 | 3 8 4 Class Distribution -------------------- 100% | Mutant Dominant Class ---------------- Mutant | -10/Materials Mutant | -10/Subcaves Resources | -11 -10 -10 ----------- Run | Yrd Mat Sub Matter Collected 782 | 158 215 409 Remotely . | . . . Salvage Created 736 | . 444 292 Parts 68 | . 33 35 Haulers Intercepted 1 | . 1 . Recyclers Shooed . | . . . Parts Field Recycled . | . . . Retrieved Matter . | . . . Parts Self-Destructed 16 | . . 16 Prevented . | . . . Kills | -11 -10 -10 ------- Run | Yrd Mat Sub Combat Hostiles Destroyed 26 | . 14 12 Guns 17 | . 8 9 AOE 9 | . 6 3 Classes Destroyed 8 | . 7 1 Worker 1 | . 1 . Hauler 1 | . 1 . Operator 1 | . 1 . Watcher 1 | . 1 . Swarmer 12 | . 6 6 Grunt 5 | . 5 . Sentry 1 | . . 1 Subdweller 8 | . 3 5 Best Kill Streak 5 | . 5 4 Combat Bots Only 5 | . 5 4 Max Kills in Single Turn 2 | . 2 2 Gunslinging 1 | . 1 1 Exploded 2 | . 2 2 Melee . | . . . Uniques/NPCs Destroyed . | . . . Combat | -11 -10 -10 -------- Run | Yrd Mat Sub Hostile Shots Fired 133 | . 60 73 Missed 43 | . 20 23 Damage Taken 1280 | . 560 720 Core 258 | . 54 204 Absorbed by Shields . | . . . Core Remaining (%) 100 | 100 . . Volleys Fired 92 | . 37 55 Largest 2 | . 2 2 Hottest 100 | . 80 100 Shots Fired 135 | . 65 70 Gun 92 | . 52 40 Cannon . | . . . Launcher 28 | . 13 15 Special 15 | . . 15 Kinetic 40 | . . 40 Thermal 15 | . . 15 Explosive 28 | . 13 15 Electromagnetic 52 | . 52 . Robot Hit Streak 12 | . 12 12 Robot Miss Streak 3 | . 3 1 Penetration Max . | . . . Secondary Targets 4 | . 2 2 Max Gunslinging Chain 1 | . 1 1 Shots Hit Robots 74 | . 39 35 Core Hits 45 | 1 26 18 Critical Kills 1 | . . 1 Critical Parts Destroyed . | . . . Critical Strikes 1 | . . 1 Destroy 1 | . . 1 Melee Attacks . | . . . Impact . | . . . Slashing . | . . . Piercing . | . . . Sneak Attacks . | . . . Combat Hostiles . | . . . Follow-up Attacks . | . . . Damage Inflicted 1981 | 4 1251 726 Guns 901 | . 387 514 Cannons . | . . . Explosions 1076 | . 864 212 Melee . | . . . Ramming 4 | 4 . . Kinetic 514 | . . 514 Thermal 111 | . 111 . Explosive 965 | . 753 212 Electromagnetic 387 | . 387 . Impact . | . . . Slashing . | . . . Piercing . | . . . Highest Corruption . | . . . Average Corruption . | . . . Corruption Purged . | . . . Corruption Blocked . | . . . Overload Shots . | . . . Overflow Damage . | . . . Projectiles . | . . . Explosions . | . . . Melee . | . . . Knockbacks . | . . . Impact . | . . . Kinetic . | . . . Secondary . | . . . Self-Inflicted Damage 118 | . 78 40 Shots 5 | . 3 2 Rammed 2 | 2 . . Targets Rammed 2 | 2 . . Kicked . | . . . Crushed . | . . . Highest Temperature 222 | . 222 1 Average Temperature 66 | . 67 1 Received Heat Transfer 207 | . 120 87 Siege Activations . | . . . Robots Corrupted . | . . . Combat Hostiles . | . . . Parts Fried 2 | . 2 . Impact Corruptions . | . . . Robots Melted . | . . . Combat Hostiles . | . . . Parts Melted . | . . . Heat Transferred 200 | . 200 . Parts Sabotaged . | . . . Parts Stolen . | . . . Parts Stripped . | . . . Power Chain Reactions 2 | . 2 . Alert | -11 -10 -10 ------- Run | Yrd Mat Sub Peak Influence 203 | . 203 . Initial . | . . . Average 96 | . 107 . Maximum Alert Level 1 | . 1 . Low Security (%) 92 | 100 91 . Level 1 7 | . 8 . Level 2 . | . . . Level 3 . | . . . Level 4 . | . . . Level 5 . | . . . High Security . | . . . Max Security . | . . . Squads Dispatched 1 | . 1 . Investigation 1 | . 1 . Extermination . | . . . Reinforcement . | . . . Assault . | . . . Garrison . | . . . Intercept . | . . . Searches Triggered . | . . . Construction Impeded . | . . . Haulers Reinforced . | . . . Active Scanning Responses . | . . . Cargo Convoy Interrupts . | . . . Stealth | -11 -10 -10 --------- Run | Yrd Mat Sub Distress Signals . | . . . Communications Jammed . | . . . Distress Signals . | . . . Times Spotted 35 | . 18 17 Peak Tracking Total 6 | . 5 6 Tactical Retreats 3 | . 2 1 Traps | -11 -10 -10 ------- Run | Yrd Mat Sub Traps Triggered 1 | . . 1 Indirectly . | . . . Trap Hack Attempts . | . . . Triggered . | . . . Disarmed . | . . . Reprogrammed . | . . . Reused . | . . . Traps Extracted . | . . . Installed . | . . . Triggered . | . . . Machines | -11 -10 -10 ---------- Run | Yrd Mat Sub Machines Disabled . | . . . Max in Single Turn . | . . . Machines Repaired . | . . . Machines Dismantled . | . . . Machines Sabotaged . | . . . Overloaded Fab Kills . | . . . Hacking | -11 -10 -10 --------- Run | Yrd Mat Sub Machines Accessed 6 | . 3 3 Terminals 3 | . 3 . Fabricators . | . . . Repair Stations . | . . . Recycling Units . | . . . Scanalyzers . | . . . Garrison Access . | . . . Total Hacks 18 | . 12 6 Successful 8 | . 2 6 Failed 10 | . 10 . Catastrophic . | . . . Database Lockouts . | . . . Manual 3 | . 3 . Terminals 12 | . 12 . Fabricators . | . . . Repair Stations . | . . . Recycling Units . | . . . Scanalyzers . | . . . Garrison Access . | . . . Terminal Hacks 7 | . 1 6 Record 4 | . . 4 Robot Analysis 1 | . 1 . Open Door 1 | . . 1 Release Object 1 | . . 1 Fabricator Hacks . | . . . Repair Station Hacks . | . . . Recycling Unit Hacks . | . . . Scanalyzer . | . . . Garrison Access Hacks . | . . . Unauthorized Hacks 1 | . 1 . Terminals 1 | . 1 . Botnet 1 | . 1 . Fabricators . | . . . Repair Stations . | . . . Recycling Units . | . . . Scanalyzers . | . . . Garrison Access . | . . . Data Cores Recovered 1 | . 1 . Used . | . . . Hacking Detections 3 | . 3 . Full Trace Events 2 | . 2 . Feedback Events . | . . . Feedback Blocked . | . . . Robot Schematics Acquired . | . . . Robots Built . | . . . Authchips . | . . . Time . | . . . Total Robot Build Rating . | . . . Part Schematics Acquired . | . . . Parts Built . | . . . Authchips . | . . . Time . | . . . Total Part Build Rating . | . . . Parts Repaired . | . . . Time . | . . . Parts Recycled . | . . . Recycled Matter . | . . . Retrieved Matter . | . . . Retrieved Components . | . . . Parts Scanalyzed . | . . . Part Schematics Acquired . | . . . Parts Damaged . | . . . Bothacking | -11 -10 -10 ------------ Run | Yrd Mat Sub Used RIF Installer . | . . . Robots Hacked . | . . . Non-combat . | . . . Combat . | . . . Robot Hacks Applied . | . . . Relay Couplers Released . | . . . Fabnet Peak Effective % . | . . . Robots Rewired . | . . . Allies Hacked . | . . . Hacks Repelled . | . . . Allies | -11 -10 -10 -------- Run | Yrd Mat Sub Total Allies . | . . . Largest Group . | . . . Highest-Rated Group . | . . . Highest-Rated Ally . | . . . Total Orders . | . . . Ally Attacks . | . . . Total Damage . | . . . Kills . | . . . Allies Corrupted . | . . . Allies Melted . | . . . Intel | -11 -10 -10 ------- Run | Yrd Mat Sub Robot Analysis Total 1 | . 1 . Derelict Logs Recovered 2 | . . 2 Drone Launches . | . . . Drone Recoveries . | . . . Exploration | -11 -10 -10 ------------- Run | Yrd Mat Sub Turns Passed 3599 | 88 736 2775 Spaces Moved 2631 | 47 439 2145 Core 2 | 2 . . Treads 185 | 45 140 . Legs 2444 | . 299 2145 Wheels . | . . . Hover . | . . . Flight . | . . . Fastest Speed 50 | 50 120 120 Average Speed 122 | 155 132 120 Slowest Speed 160 | 160 160 120 Overloaded Moves . | . . . Propulsion Burnouts . | . . . Robots Hopped . | . . . Cave-ins Triggered . | . . . Exploration Rate (%) 49 | 4 50 94 Regions Visited 2 Branch Regions 1 Pre-discovered Areas 1 | . . 1 Known Exits Taken . | . . . Unknown Exits Taken 2 | 1 1 . Scrap Searched 4 | . . 4 Spaces Dug 24 | . . 24 Terrain Destroyed 164 | . 74 90 Melee . | . . . Projectile 2 | . . 2 AOE 162 | . 74 88 Terrain Rammed . | . . . Walls Destroyed . | . . . Machines Disabled . | . . . Actions | -11 -10 -10 --------- Run | Yrd Mat Sub Total 2830 | 58 526 2246 Wait 49 | . 26 23 Move 2629 | 46 438 2145 Hop . | . . . Pick Up 15 | 4 8 3 Fast Attach 12 | 5 6 1 Attach 7 | 1 2 4 Detach 1 | . 1 . Swap 13 | . 2 11 Drop 10 | . 6 4 Fire 92 | . 37 55 Melee . | . . . Ram . | . . . Kick . | . . . Crush 2 | 2 . . Escape Stasis . | . . . Rewire . | . . . Trap . | . . . Miscellaneous . | . . . Route ------- -11/Scrapyard -10/Materials (discovered 3 exits: [*Mat x2] / *Sub) -10/Subcaves (discovered 3 exits: [*Mat x2] / *Rec) History --------- Turn | Location | Event 45 | -11/Scrapyard | Discovered new exit (range 14) 89 | -11/Scrapyard | Entered Materials 313 | -10/Materials | Build established: Mutant 408 | -10/Materials | Discovered new exit (range 12) 564 | -10/Materials | Discovered new exit (range 10) 589 | -10/Materials | Derelicts attacked the area 798 | -10/Materials | Discovered new exit (range 11) 825 | -10/Materials | Entered Subcaves 837 | -10/Subcaves | Shifting Twisted Machinery released Battle Rifle 840 | -10/Subcaves | Discovered new exit (range 7) 1286 | -10/Subcaves | Learned location of Zion (-6) 1286 | -10/Subcaves | Met a Zionite searching for "candidates" 1423 | -10/Subcaves | Identified exit to Recycling 1506 | -10/Subcaves | Shifting Twisted Machinery released Flamer 1532 | -10/Subcaves | Shifting Twisted Machinery released Piercing Trap 2030 | -10/Subcaves | Core integrity fell below 50% 2461 | -10/Subcaves | Shifting Twisted Machinery released Riot Gun 2462 | -10/Subcaves | Shifting Twisted Machinery released Mak. Light Armor Plating 2494 | -10/Subcaves | A swath of the cavern ceiling suddenly collapsed 2869 | -10/Subcaves | Discovered new exit (range 10) 2883 | -10/Subcaves | Visited Clippyterm 2940 | -10/Subcaves | Core integrity fell below 20% 2983 | -10/Subcaves | Learned Materials terminal intel 3436 | -10/Subcaves | Ambushed by Subdweller buried in earth 3440 | -10/Subcaves | Ambushed by Subdweller buried in earth 3568 | -10/Subcaves | Ambushed by Subdwellers from Twisted Machinery 3600 | -10/Subcaves | Destroyed by 7F-P14(R) with Subdweller Laser Last Messages --------------- O0-DX5(R): "NOSTUCKSUB!" Grenade Launcher destroyed. O0-DX5(R) destroyed. Acquired 3 matter. Acquired 9 matter. Acquired 10 matter. UF-G6O(R) destroyed. Switching to secondary target: ML-N0S(R). ML-N0S(R) suffers critical hit (Destroy). ML-N0S(R) destroyed. Acquired 57 matter. Acquired Sub. Machine Gun. 9P-MPQ(R) emerges from the Twisted Machinery. Critical hit (Destroy). Battle Rifle destroyed. Aluminum Leg destroyed. 9P-MPQ(R) destroyed. Switching to secondary target: 7F-P14(R). Aluminum Leg destroyed. 7F-P14(R) affixes Scrap Shield Fragment to Scrap Shield. Map ----- +----------------------------------------------------+ | !& #??????????????????????????????# ##??#### | | # &* #??????????????????????????????## ### #? | | & & #?????????????????????????????## #? | | ! #?????????????????????????????# ### | | #????????????????????????????# ### | | ## ##????????????????????????????# ## | | ?#######?????????????????????????????## | | ??????????????????????????????????????## | | #?????????????????????????????????????## # | | #?????????????????????????????????????# # | | #?????????????????????????????????????# # | | #???##????????????????????????????????# ## | | #### #????????????????????????????????## ##? | | ## #????????????????????????????????## ####?? | | #????????????????????????????????# ##????# | | #???????????????????????????????## ######## | | ##??????????????????????????????# ##?# | | ##?????????????????????????????## ##?# | | #??????????????????????????????###??### | | ##?########???????????#######??????????##### | | ##?## ####???????##"""" #??????????????? | | #### ##?????## """" #??????????????? | | ## #?# ##??### """"#???????????????? | | ### ### #?## """#????????????????? | | ##?## ## !###* #????????????????? | | #???# &= *R%@## #????????????????? | | ????# ## !! &&&## #???????????????? | | #???###### ## =#%# ### ##???????????????? | | #????????# ######[ ##? #???????????????? | | #????????### #????# #?# # ##???????????????? | | ???????????# #???# #?# # ????????????????? | | ???????????# #???# ? ???????????????? | | ???????????##### #???#### # # ? #??????????????? | | ????????????????##???????### ? ??????????????? | | ????????????????????????????? ?? "?????????????? | | ????????????????????????????? ?# ""????????????? | | ????????????????????????????? ???# "?????????????? | | ##???????????????????? ????? ????# ?????????????? | | ##??????????????????# #"??? ???????????????????? | | ####???????????????# ??? ???????????????????? | | ##??????????"""" ???????????????????????? | | #??????????? "" #???????????????????????? | | #??????????? ????????????????????????? | | #???????????? #????????????????????????? | | ###????????????? ##???????????????????????? | | #???????????????# #???????????????????????? | | ##??????????????## #???????????????????????? | | ##???????????##?## #???????????????????????? | | ##???????????# ## #???????????????????????? | | ##??????????# ##??????????????????????? | +----------------------------------------------------+ Best States ------------- Heat Dissipation 25 Energy Generation 10 Energy Capacity 250 Matter Stores 300 Matter Capacity 300 Sight Range 16 Terrain Scan Range 14 Terrain Scan Density 10 Armor Coverage 100 Evasion (%) 55 Targeting Accuracy 5 Recoil Reduction 2 Item Schematics ----------------- None Robot Schematics ------------------ None Fabricated ------------ Nothing Alien Tech Used ----------------- None Achievements -------------- None Challenges ------------ None Game ------ Seed CloakBombBeamcaster Manual? 0 Play Time 00:22:48 Cumulative 44.0 hours Start 2024.10.02 @ 10:48:58 End 2024.10.02 @ 11:11:28 Sessions 1 Manual Loads 0 Difficulty Rogue Special Mode None Game No. 52 Rogue 52 Adventurer 0 Explorer 0 Win Type - Total 0 Types 0/0/0/0/0/0/0/0/0 Lore% 28 Gallery% 39 Achievement% 35 Wizard Run 0 Options --------- Layout 0 ASCII 0 Keyboard 0 Movement Arrows Keybinds 0 Fullscreen 1 Font 18/SmallcapsGlow Map View 76x50 Zoom Use 0% Tactical HUD 0 Map Filters NONE Filters NONE Steam 0 RUN: 19340eaf-dcd0-40a7-bb20-3c1a6ba1fc12